[Event "*** SCC Grand Prix: Titled Tuesday Blitz"]
[Site "Chess.com"]
[Date "2020.09.29"]
[Round "8"]
[White "ajgreen"]
[Black "ORS1984"]
[Result "1-0"]
[WhiteElo "2390"]
[BlackElo "2508"]
[TimeControl "180+1"]
[EndTime "11:34:05 PDT"]
[Termination "ajgreen won on time"]

1. e4 {[%clk 0:03:00.9]} 1... c5 {[%clk 0:02:59.4]} 2. Nf3 {[%clk 0:03:01]} 2...
d6 {[%clk 0:02:59]} 3. d4 {[%clk 0:03:01.5]} 3... cxd4 {[%clk 0:02:58.6]} 4.
Nxd4 {[%clk 0:03:02.4]} 4... Nf6 {[%clk 0:02:58.6]} 5. Nc3 {[%clk 0:03:03]} 5...
Nc6 {[%clk 0:02:58.4]} 6. Bg5 {[%clk 0:03:02.4]} 6... e6 {[%clk 0:02:57.9]} 7.
Qd2 {[%clk 0:03:00.2]} 7... a6 {[%clk 0:02:57.9]} 8. f4 {[%clk 0:02:46.9]} 8...
Bd7 {[%clk 0:02:47.6]} 9. O-O-O {[%clk 0:02:45.2]} 9... Be7 {[%clk 0:02:47.2]}
10. Be2 {[%clk 0:02:25.5]} 10... Rc8 {[%clk 0:02:45.8]} 11. Rhf1 {[%clk
0:02:22.4]} 11... Qc7 {[%clk 0:02:45.2]} 12. Kb1 {[%clk 0:02:21.7]} 12... h6
{[%clk 0:02:44.6]} 13. Bh4 {[%clk 0:02:06.5]} 13... b5 {[%clk 0:02:06.2]} 14.
Bxf6 {[%clk 0:01:41.9]} 14... gxf6 {[%clk 0:01:52.2]} 15. f5 {[%clk 0:01:38.2]}
15... Nxd4 {[%clk 0:01:44.7]} 16. Qxd4 {[%clk 0:01:37.7]} 16... Qc5 {[%clk
0:01:41.3]} 17. Bh5 {[%clk 0:01:23.8]} 17... Qxd4 {[%clk 0:00:59.9]} 18. Rxd4
{[%clk 0:01:21.5]} 18... O-O {[%clk 0:00:57.7]} 19. Bg4 {[%clk 0:01:01.2]} 19...
Rc5 {[%clk 0:00:42.5]} 20. Ne2 {[%clk 0:00:46.1]} 20... e5 {[%clk 0:00:28.6]}
21. Rd2 {[%clk 0:00:37.1]} 21... Bc6 {[%clk 0:00:28.6]} 22. Bf3 {[%clk
0:00:36.2]} 22... Rd8 {[%clk 0:00:27.3]} 23. Rfd1 {[%clk 0:00:30.1]} 23... b4
{[%clk 0:00:26.6]} 24. b3 {[%clk 0:00:25.3]} 24... a5 {[%clk 0:00:26.1]} 25. c4
{[%clk 0:00:22.4]} 25... bxc3 {[%clk 0:00:23.8]} 26. Rc2 {[%clk 0:00:20.9]}
26... d5 {[%clk 0:00:21.7]} 27. exd5 {[%clk 0:00:17.9]} 27... Bxd5 {[%clk
0:00:21.6]} 28. Bxd5 {[%clk 0:00:17.5]} 28... Rcxd5 {[%clk 0:00:20]} 29. Rxd5
{[%clk 0:00:17.2]} 29... Rxd5 {[%clk 0:00:20.9]} 30. Nxc3 {[%clk 0:00:16.6]}
30... Rd4 {[%clk 0:00:17.3]} 31. Ne2 {[%clk 0:00:15.1]} 31... Re4 {[%clk
0:00:16.5]} 32. Kc1 {[%clk 0:00:12.6]} 32... Ba3+ {[%clk 0:00:15.6]} 33. Kd2
{[%clk 0:00:12.5]} 33... h5 {[%clk 0:00:15]} 34. Kd3 {[%clk 0:00:11.2]} 34...
Rg4 {[%clk 0:00:15.1]} 35. g3 {[%clk 0:00:11.1]} 35... h4 {[%clk 0:00:14.7]} 36.
h3 {[%clk 0:00:10.3]} 36... Rg5 {[%clk 0:00:13.1]} 37. g4 {[%clk 0:00:10.5]}
37... Kh7 {[%clk 0:00:13.1]} 38. Rc8 {[%clk 0:00:10.3]} 38... Rg8 {[%clk
0:00:12.4]} 39. Rxg8 {[%clk 0:00:10]} 39... Kxg8 {[%clk 0:00:13.3]} 40. Ke4
{[%clk 0:00:09.4]} 40... Kf8 {[%clk 0:00:13.3]} 41. Nc3 {[%clk 0:00:09.6]} 41...
Bb2 {[%clk 0:00:10.8]} 42. Nd5 {[%clk 0:00:09]} 42... Kg7 {[%clk 0:00:10.9]} 43.
Nc7 {[%clk 0:00:08.5]} 43... Bc1 {[%clk 0:00:10.6]} 44. Kd5 {[%clk 0:00:08.5]}
44... Bd2 {[%clk 0:00:10.4]} 45. Ne8+ {[%clk 0:00:08.6]} 45... Kh6 {[%clk
0:00:09.6]} 46. Nxf6 {[%clk 0:00:08.9]} 46... Kg5 {[%clk 0:00:09.9]} 47. Nh5
{[%clk 0:00:07.2]} 47... f6 {[%clk 0:00:07.9]} 48. Ke4 {[%clk 0:00:07.3]} 48...
Be1 {[%clk 0:00:07.9]} 49. Ng7 {[%clk 0:00:07.1]} 49... Kh6 {[%clk 0:00:06.7]}
50. Ne8 {[%clk 0:00:07]} 50... Bc3 {[%clk 0:00:03.6]} 51. Nxf6 {[%clk 0:00:07]}
51... Bb2 {[%clk 0:00:03.5]} 52. Nd5 {[%clk 0:00:07.3]} 52... Kg5 {[%clk
0:00:03.6]} 53. Nb6 {[%clk 0:00:07.3]} 53... Kf6 {[%clk 0:00:03.5]} 54. Nd7+
{[%clk 0:00:07.5]} 54... Ke7 {[%clk 0:00:01.6]} 55. Nxe5 {[%clk 0:00:07.8]}
55... Kd6 {[%clk 0:00:02.5]} 56. g5 {[%clk 0:00:08.2]} 56... Kc5 {[%clk
0:00:02.4]} 57. Nd3+ {[%clk 0:00:08]} 1-0

[Event "*** SCC Grand Prix: Titled Tuesday Blitz"]
[Site "Chess.com"]
[Date "2020.09.29"]
[Round "8"]
[White "Rogarcia1"]
[Black "VladaSviridova"]
[Result "1-0"]
[WhiteElo "2106"]
[BlackElo "2224"]
[TimeControl "180+1"]
[EndTime "11:34:06 PDT"]
[Termination "Rogarcia1 won on time"]

1. e4 {[%clk 0:03:00.9]} 1... e6 {[%clk 0:03:00.1]} 2. d4 {[%clk 0:02:59.8]}
2... d5 {[%clk 0:03:00.8]} 3. e5 {[%clk 0:03:00.1]} 3... c5 {[%clk 0:03:00.5]}
4. c3 {[%clk 0:03:00.4]} 4... Qb6 {[%clk 0:03:00.7]} 5. Nf3 {[%clk 0:03:00.2]}
5... Nc6 {[%clk 0:03:00.7]} 6. Be2 {[%clk 0:02:59.9]} 6... cxd4 {[%clk
0:02:57.6]} 7. cxd4 {[%clk 0:02:59.6]} 7... Nge7 {[%clk 0:02:56.8]} 8. Na3
{[%clk 0:02:59]} 8... Nf5 {[%clk 0:02:54.4]} 9. Nc2 {[%clk 0:02:59.1]} 9... Bd7
{[%clk 0:02:54.1]} 10. O-O {[%clk 0:02:54.1]} 10... Rc8 {[%clk 0:02:54.1]} 11.
g4 {[%clk 0:02:26.3]} 11... Nfe7 {[%clk 0:02:53.5]} 12. Nfe1 {[%clk 0:02:26]}
12... Nb4 {[%clk 0:02:32]} 13. f4 {[%clk 0:02:12]} 13... h5 {[%clk 0:01:52.2]}
14. Be3 {[%clk 0:01:10.8]} 14... hxg4 {[%clk 0:01:47.5]} 15. Bxg4 {[%clk
0:01:10.9]} 15... g6 {[%clk 0:01:41.4]} 16. Nxb4 {[%clk 0:01:01.8]} 16... Qxb4
{[%clk 0:01:40.5]} 17. Nd3 {[%clk 0:01:02]} 17... Qb6 {[%clk 0:01:34]} 18. Nc5
{[%clk 0:00:59.8]} 18... Bb5 {[%clk 0:01:09.9]} 19. Rf2 {[%clk 0:00:59.7]} 19...
Nf5 {[%clk 0:01:09.1]} 20. Bxf5 {[%clk 0:00:59.1]} 20... gxf5 {[%clk 0:01:08.2]}
21. a4 {[%clk 0:00:52.6]} 21... Bd7 {[%clk 0:00:44.1]} 22. b4 {[%clk 0:00:52.5]}
22... Be7 {[%clk 0:00:22]} 23. Qd2 {[%clk 0:00:39.4]} 23... Bh4 {[%clk
0:00:20.4]} 24. Rg2 {[%clk 0:00:38.6]} 24... Ke7 {[%clk 0:00:20]} 25. b5 {[%clk
0:00:31.2]} 25... Rcg8 {[%clk 0:00:19.3]} 26. Qb4 {[%clk 0:00:25]} 26... Rxg2+
{[%clk 0:00:18.1]} 27. Kxg2 {[%clk 0:00:25.8]} 27... Kd8 {[%clk 0:00:16.4]} 28.
Rc1 {[%clk 0:00:20.2]} 28... Be7 {[%clk 0:00:15.9]} 29. Rb1 {[%clk 0:00:18.8]}
29... Rg8+ {[%clk 0:00:15.1]} 30. Kh1 {[%clk 0:00:18.4]} 30... Bc8 {[%clk
0:00:13.9]} 31. a5 {[%clk 0:00:18.5]} 31... Qc7 {[%clk 0:00:12.9]} 32. Qc3
{[%clk 0:00:18.7]} 32... b6 {[%clk 0:00:11.9]} 33. Na4 {[%clk 0:00:14]} 33...
Qxc3 {[%clk 0:00:11.3]} 34. Nxc3 {[%clk 0:00:14.9]} 34... bxa5 {[%clk 0:00:11]}
35. Ra1 {[%clk 0:00:13.5]} 35... Bb4 {[%clk 0:00:10.2]} 36. Na4 {[%clk
0:00:13.3]} 36... Bd7 {[%clk 0:00:09.9]} 37. Nc5 {[%clk 0:00:13]} 37... Bxb5
{[%clk 0:00:09.3]} 38. Nb7+ {[%clk 0:00:13.1]} 38... Kc7 {[%clk 0:00:09.4]} 39.
Nxa5 {[%clk 0:00:13.3]} 39... Bxa5 {[%clk 0:00:09.7]} 40. Rxa5 {[%clk
0:00:12.9]} 40... Kb6 {[%clk 0:00:10.2]} 41. Ra2 {[%clk 0:00:12.9]} 41... a5
{[%clk 0:00:10.1]} 42. Rb2 {[%clk 0:00:12.7]} 42... a4 {[%clk 0:00:09.8]} 43. h4
{[%clk 0:00:11]} 43... Rg4 {[%clk 0:00:08.5]} 44. Rh2 {[%clk 0:00:09.2]} 44...
Bd3 {[%clk 0:00:08.1]} 45. Rb2+ {[%clk 0:00:03.1]} 45... Ka6 {[%clk 0:00:07]}
46. Kh2 {[%clk 0:00:03.1]} 46... Be4 {[%clk 0:00:04.6]} 47. Kh3 {[%clk 0:00:03]}
47... Rg8 {[%clk 0:00:04.2]} 48. h5 {[%clk 0:00:03.2]} 48... Rh8 {[%clk
0:00:04.3]} 49. Kh4 {[%clk 0:00:03.7]} 49... Ka5 {[%clk 0:00:04]} 50. Kg5 {[%clk
0:00:04.2]} 50... a3 {[%clk 0:00:03.8]} 51. Rh2 {[%clk 0:00:03.9]} 51... Ka4
{[%clk 0:00:04]} 52. Bc1 {[%clk 0:00:04.4]} 52... Kb3 {[%clk 0:00:03.4]} 53.
Rh3+ {[%clk 0:00:04.9]} 53... Kc2 {[%clk 0:00:03.5]} 54. Bxa3 {[%clk 0:00:05.6]}
54... Kd2 {[%clk 0:00:02.9]} 55. h6 {[%clk 0:00:05.5]} 55... Ke2 {[%clk
0:00:02.9]} 56. Kf6 {[%clk 0:00:05.8]} 56... Kf2 {[%clk 0:00:02.1]} 57. Kg7
{[%clk 0:00:06.2]} 57... Ra8 {[%clk 0:00:01.6]} 58. h7 {[%clk 0:00:06]} 58...
Kg2 {[%clk 0:00:01.1]} 59. h8=Q {[%clk 0:00:05.9]} 1-0

[Event "*** SCC Grand Prix: Titled Tuesday Blitz"]
[Site "Chess.com"]
[Date "2020.09.29"]
[Round "8"]
[White "sjam6687"]
[Black "UmarovSabir"]
[Result "1-0"]
[WhiteElo "2531"]
[BlackElo "2368"]
[TimeControl "180+1"]
[EndTime "11:34:10 PDT"]
[Termination "sjam6687 won on time"]

1. d4 {[%clk 0:03:00.9]} 1... g6 {[%clk 0:02:57.8]} 2. e4 {[%clk 0:02:59.7]}
2... Bg7 {[%clk 0:02:56.3]} 3. Nf3 {[%clk 0:03:00.2]} 3... c6 {[%clk 0:02:55.8]}
4. c3 {[%clk 0:02:58.9]} 4... d5 {[%clk 0:02:50.8]} 5. e5 {[%clk 0:02:59]} 5...
Nh6 {[%clk 0:02:49]} 6. h3 {[%clk 0:02:53.7]} 6... f6 {[%clk 0:02:48.2]} 7. Bd3
{[%clk 0:02:46.6]} 7... O-O {[%clk 0:02:38.9]} 8. O-O {[%clk 0:02:46.2]} 8...
Nd7 {[%clk 0:02:20.6]} 9. exf6 {[%clk 0:02:40.9]} 9... exf6 {[%clk 0:02:20.2]}
10. Bf4 {[%clk 0:02:26.8]} 10... Nf7 {[%clk 0:02:17.9]} 11. Re1 {[%clk
0:02:22.9]} 11... Re8 {[%clk 0:02:08.9]} 12. Nbd2 {[%clk 0:02:21.7]} 12... Nf8
{[%clk 0:02:04.6]} 13. Rxe8 {[%clk 0:02:11.3]} 13... Qxe8 {[%clk 0:02:03.9]} 14.
Qb3 {[%clk 0:02:11.6]} 14... Ne6 {[%clk 0:01:09.4]} 15. Re1 {[%clk 0:02:11.6]}
15... Qf8 {[%clk 0:01:09.3]} 16. Bg3 {[%clk 0:02:09.5]} 16... b5 {[%clk
0:01:02.1]} 17. a4 {[%clk 0:01:58.9]} 17... a6 {[%clk 0:01:02.2]} 18. Ra1 {[%clk
0:01:57.4]} 18... Bd7 {[%clk 0:01:01.5]} 19. axb5 {[%clk 0:01:23.1]} 19... axb5
{[%clk 0:01:00.8]} 20. Qd1 {[%clk 0:01:23.6]} 20... Bh6 {[%clk 0:00:58.7]} 21.
Nb3 {[%clk 0:01:18.4]} 21... Kg7 {[%clk 0:00:42]} 22. Bf1 {[%clk 0:00:59.6]}
22... Bf4 {[%clk 0:00:27.8]} 23. Bxf4 {[%clk 0:00:51.3]} 23... Nxf4 {[%clk
0:00:28.7]} 24. Nc5 {[%clk 0:00:50.4]} 24... Rxa1 {[%clk 0:00:25.8]} 25. Qxa1
{[%clk 0:00:50.8]} 25... Bf5 {[%clk 0:00:16.2]} 26. Qa7 {[%clk 0:00:49.8]} 26...
Be4 {[%clk 0:00:15]} 27. Qc7 {[%clk 0:00:45]} 27... Qd6 {[%clk 0:00:11]} 28.
Qxd6 {[%clk 0:00:33.2]} 28... Nxd6 {[%clk 0:00:10.8]} 29. Nd2 {[%clk 0:00:33.4]}
29... Bc2 {[%clk 0:00:10]} 30. g3 {[%clk 0:00:29.7]} 30... Nh5 {[%clk 0:00:10]}
31. Ne6+ {[%clk 0:00:29.5]} 31... Kf7 {[%clk 0:00:09.6]} 32. Nd8+ {[%clk
0:00:29.3]} 32... Ke8 {[%clk 0:00:09.7]} 33. Nxc6 {[%clk 0:00:29.5]} 33... Kd7
{[%clk 0:00:10]} 34. Nb4 {[%clk 0:00:28.6]} 34... Be4 {[%clk 0:00:09.6]} 35. f3
{[%clk 0:00:24.4]} 35... Bb1 {[%clk 0:00:09.4]} 36. Nxb1 {[%clk 0:00:23]} 36...
Nxg3 {[%clk 0:00:08.5]} 37. Nd2 {[%clk 0:00:23.2]} 37... Ke6 {[%clk 0:00:05.9]}
38. Kg2 {[%clk 0:00:20.1]} 38... Ngf5 {[%clk 0:00:05.4]} 39. Kf2 {[%clk
0:00:19.3]} 39... g5 {[%clk 0:00:05.7]} 40. Nd3 {[%clk 0:00:19.1]} 40... h5
{[%clk 0:00:04.8]} 41. Nc5+ {[%clk 0:00:19.2]} 41... Ke7 {[%clk 0:00:04.3]} 42.
Bd3 {[%clk 0:00:19.6]} 42... Ng7 {[%clk 0:00:04.1]} 43. Nf1 {[%clk 0:00:19.4]}
43... h4 {[%clk 0:00:04.1]} 44. Ne3 {[%clk 0:00:19.1]} 44... f5 {[%clk
0:00:03.4]} 45. Nxd5+ {[%clk 0:00:18.7]} 45... Kf7 {[%clk 0:00:04.3]} 46. Ne3
{[%clk 0:00:18.6]} 46... f4 {[%clk 0:00:04.1]} 47. Ng4 {[%clk 0:00:18]} 47...
Nge8 {[%clk 0:00:04.2]} 48. Ne5+ {[%clk 0:00:17.9]} 48... Kf6 {[%clk 0:00:04.1]}
49. Ne4+ {[%clk 0:00:17.8]} 49... Nxe4+ {[%clk 0:00:03.8]} 50. fxe4 {[%clk
0:00:18.2]} 50... Nd6 {[%clk 0:00:04.5]} 51. Nf3 {[%clk 0:00:17.1]} 51... Nc4
{[%clk 0:00:03.4]} 52. Bxc4 {[%clk 0:00:16.5]} 52... bxc4 {[%clk 0:00:04.3]} 53.
Nd2 {[%clk 0:00:16.5]} 53... g4 {[%clk 0:00:04]} 54. hxg4 {[%clk 0:00:16.1]}
54... Kg5 {[%clk 0:00:04.4]} 55. Kf3 {[%clk 0:00:15.8]} 55... h3 {[%clk
0:00:04.6]} 56. Nf1 {[%clk 0:00:15.9]} 56... Kh4 {[%clk 0:00:04.3]} 57. Kxf4
{[%clk 0:00:14.4]} 57... h2 {[%clk 0:00:04.3]} 58. Nxh2 {[%clk 0:00:14.7]} 1-0

[Event "*** SCC Grand Prix: Titled Tuesday Blitz"]
[Site "Chess.com"]
[Date "2020.09.29"]
[Round "8"]
[White "TokChess"]
[Black "ViktoriyaTarasova"]
[Result "1-0"]
[WhiteElo "2404"]
[BlackElo "2274"]
[TimeControl "180+1"]
[EndTime "11:34:10 PDT"]
[Termination "TokChess won by resignation"]

1. c4 {[%clk 0:03:00.9]} 1... c5 {[%clk 0:02:58]} 2. g3 {[%clk 0:03:00.5]} 2...
Nc6 {[%clk 0:02:55.7]} 3. Bg2 {[%clk 0:03:01.1]} 3... e5 {[%clk 0:02:56.2]} 4.
Nc3 {[%clk 0:03:01.1]} 4... g6 {[%clk 0:02:56.5]} 5. Nf3 {[%clk 0:03:01.3]} 5...
Bg7 {[%clk 0:02:56.6]} 6. O-O {[%clk 0:03:01.3]} 6... Nge7 {[%clk 0:02:55.7]} 7.
a3 {[%clk 0:03:01.6]} 7... a5 {[%clk 0:02:54.6]} 8. Rb1 {[%clk 0:02:59.6]} 8...
O-O {[%clk 0:02:54.6]} 9. Ne1 {[%clk 0:02:56.1]} 9... d6 {[%clk 0:02:55.4]} 10.
Nc2 {[%clk 0:02:56.2]} 10... Be6 {[%clk 0:02:55.2]} 11. d3 {[%clk 0:02:55.6]}
11... d5 {[%clk 0:02:54.7]} 12. cxd5 {[%clk 0:02:55.6]} 12... Nxd5 {[%clk
0:02:54.2]} 13. Ne3 {[%clk 0:02:51.9]} 13... Nde7 {[%clk 0:02:52.2]} 14. Ne4
{[%clk 0:02:10]} 14... b6 {[%clk 0:02:48.5]} 15. Bd2 {[%clk 0:01:58.8]} 15...
Rc8 {[%clk 0:02:45]} 16. b4 {[%clk 0:01:50.6]} 16... axb4 {[%clk 0:02:33]} 17.
axb4 {[%clk 0:01:51]} 17... cxb4 {[%clk 0:02:33]} 18. Bxb4 {[%clk 0:01:44.4]}
18... Nxb4 {[%clk 0:02:33.1]} 19. Rxb4 {[%clk 0:01:44.2]} 19... Nc6 {[%clk
0:02:33.5]} 20. Rb1 {[%clk 0:01:39.6]} 20... f5 {[%clk 0:02:34.1]} 21. Nd2
{[%clk 0:01:26.5]} 21... Nd4 {[%clk 0:02:31.6]} 22. Nf3 {[%clk 0:01:14.5]} 22...
f4 {[%clk 0:02:25.6]} 23. Nxd4 {[%clk 0:01:11.9]} 23... exd4 {[%clk 0:02:24.6]}
24. Nc4 {[%clk 0:01:00]} 24... Rb8 {[%clk 0:02:05.6]} 25. Rb5 {[%clk 0:00:50.4]}
25... Bd7 {[%clk 0:01:50.3]} 26. Rd5 {[%clk 0:00:48.3]} 26... Qe7 {[%clk
0:01:47.8]} 27. Qb3 {[%clk 0:00:38.3]} 27... Kh8 {[%clk 0:01:35.4]} 28. Rb1
{[%clk 0:00:27.7]} 28... fxg3 {[%clk 0:01:30.8]} 29. hxg3 {[%clk 0:00:27.2]}
29... b5 {[%clk 0:01:23.4]} 30. Nd6 {[%clk 0:00:17.5]} 30... Be6 {[%clk
0:01:21.9]} 31. Ne4 {[%clk 0:00:11.6]} 31... Bxd5 {[%clk 0:01:18.2]} 32. Qxd5
{[%clk 0:00:12.2]} 32... b4 {[%clk 0:01:18.7]} 33. Bf3 {[%clk 0:00:12.6]} 33...
Rfd8 {[%clk 0:01:11.9]} 34. Qc4 {[%clk 0:00:12.2]} 34... Rdc8 {[%clk 0:01:06.8]}
35. Qd5 {[%clk 0:00:12.5]} 35... Qd8 {[%clk 0:01:03.8]} 36. Qe6 {[%clk
0:00:12.2]} 36... Qg8 {[%clk 0:00:58.4]} 37. Qd7 {[%clk 0:00:09.9]} 37... Rd8
{[%clk 0:00:54.1]} 38. Qc6 {[%clk 0:00:09.7]} 38... h6 {[%clk 0:00:44.9]} 39.
Kg2 {[%clk 0:00:09.7]} 39... Kh7 {[%clk 0:00:40.4]} 40. g4 {[%clk 0:00:10.1]}
40... Rdc8 {[%clk 0:00:35.2]} 41. Qd7 {[%clk 0:00:09.7]} 41... Qd8 {[%clk
0:00:32.8]} 42. Qf7 {[%clk 0:00:08.6]} 42... Qe8 {[%clk 0:00:29.1]} 43. Nf6+
{[%clk 0:00:07.9]} 43... Kh8 {[%clk 0:00:28.8]} 44. Nxe8 {[%clk 0:00:08.2]}
44... Rxe8 {[%clk 0:00:29]} 45. Qxg6 {[%clk 0:00:08.8]} 45... b3 {[%clk
0:00:24.9]} 46. Be4 {[%clk 0:00:08.3]} 46... Rxe4 {[%clk 0:00:24]} 47. Qxe4
{[%clk 0:00:08.9]} 47... b2 {[%clk 0:00:23.6]} 48. Qd5 {[%clk 0:00:08.3]} 48...
Bf6 {[%clk 0:00:20.3]} 49. Qa2 {[%clk 0:00:07.7]} 49... Re8 {[%clk 0:00:18.2]}
50. Rxb2 {[%clk 0:00:07.9]} 50... Kg7 {[%clk 0:00:18.7]} 51. Rc2 {[%clk
0:00:07.9]} 51... Re7 {[%clk 0:00:18.5]} 52. Qd5 {[%clk 0:00:07.8]} 52... Kg6
{[%clk 0:00:17.5]} 53. Qd6 {[%clk 0:00:07.8]} 53... Kg7 {[%clk 0:00:17.3]} 54.
Rc7 {[%clk 0:00:07.2]} 54... Rxc7 {[%clk 0:00:16.5]} 55. Qxc7+ {[%clk
0:00:07.9]} 55... Kg6 {[%clk 0:00:17.4]} 56. Qc6 {[%clk 0:00:08.5]} 56... Kg5
{[%clk 0:00:17.1]} 57. Qe4 {[%clk 0:00:09.1]} 57... Kh4 {[%clk 0:00:15.7]} 58.
Qf5 {[%clk 0:00:09.7]} 58... Bg5 {[%clk 0:00:12.6]} 59. f4 {[%clk 0:00:10.2]}
59... h5 {[%clk 0:00:05.6]} 60. fxg5 {[%clk 0:00:10.5]} 60... hxg4 {[%clk
0:00:05.9]} 61. Qh7+ {[%clk 0:00:09.1]} 61... Kxg5 {[%clk 0:00:05.6]} 62. Kg3
{[%clk 0:00:09.6]} 62... Kf6 {[%clk 0:00:05.4]} 63. Qh5 {[%clk 0:00:09.7]} 63...
Ke6 {[%clk 0:00:05.2]} 64. Kxg4 {[%clk 0:00:10.2]} 64... Kd6 {[%clk 0:00:06.1]}
65. Kf4 {[%clk 0:00:10.8]} 65... Kc6 {[%clk 0:00:07]} 66. Ke4 {[%clk 0:00:11.4]}
66... Kb6 {[%clk 0:00:07.9]} 67. Kxd4 {[%clk 0:00:12]} 1-0

[Event "*** SCC Grand Prix: Titled Tuesday Blitz"]
[Site "Chess.com"]
[Date "2020.09.29"]
[Round "8"]
[White "szefru"]
[Black "OlaaLa"]
[Result "1-0"]
[WhiteElo "2174"]
[BlackElo "2303"]
[TimeControl "180+1"]
[EndTime "11:34:12 PDT"]
[Termination "szefru won by resignation"]

1. e4 {[%clk 0:02:56.5]} 1... c5 {[%clk 0:02:59.5]} 2. Nf3 {[%clk 0:02:55.9]}
2... a6 {[%clk 0:02:59.3]} 3. b3 {[%clk 0:02:53.6]} 3... e6 {[%clk 0:02:39.5]}
4. Bb2 {[%clk 0:02:53.4]} 4... d5 {[%clk 0:02:37.7]} 5. exd5 {[%clk 0:02:52.8]}
5... Qxd5 {[%clk 0:02:37.2]} 6. Nc3 {[%clk 0:02:47.2]} 6... Qd8 {[%clk
0:02:36.8]} 7. Be2 {[%clk 0:02:43.4]} 7... Nf6 {[%clk 0:02:36.1]} 8. O-O {[%clk
0:02:43.3]} 8... Bd6 {[%clk 0:02:36]} 9. h3 {[%clk 0:02:42.6]} 9... O-O {[%clk
0:02:35.6]} 10. d4 {[%clk 0:02:37.6]} 10... cxd4 {[%clk 0:02:35]} 11. Qxd4
{[%clk 0:02:36.7]} 11... Nc6 {[%clk 0:02:31.3]} 12. Qd2 {[%clk 0:02:33.5]} 12...
Bc7 {[%clk 0:02:14.3]} 13. Rad1 {[%clk 0:02:32.2]} 13... Qxd2 {[%clk 0:02:08.6]}
14. Nxd2 {[%clk 0:02:31.5]} 14... b5 {[%clk 0:02:04.9]} 15. Bf3 {[%clk
0:02:29.1]} 15... Bb7 {[%clk 0:02:04.8]} 16. Nce4 {[%clk 0:02:28]} 16... Nxe4
{[%clk 0:01:55.8]} 17. Nxe4 {[%clk 0:02:28.9]} 17... Nb4 {[%clk 0:01:53.4]} 18.
a3 {[%clk 0:02:12.6]} 18... Nd5 {[%clk 0:01:37.3]} 19. Nc5 {[%clk 0:02:11.2]}
19... Bc6 {[%clk 0:01:37.6]} 20. a4 {[%clk 0:01:45.7]} 20... Bb6 {[%clk
0:01:25.4]} 21. axb5 {[%clk 0:01:38.8]} 21... axb5 {[%clk 0:01:19.4]} 22. Nd3
{[%clk 0:01:34.1]} 22... Ne7 {[%clk 0:00:50.4]} 23. Bxc6 {[%clk 0:01:24.8]}
23... Nxc6 {[%clk 0:00:49.2]} 24. Ra1 {[%clk 0:01:23.9]} 24... Rac8 {[%clk
0:00:37.9]} 25. c4 {[%clk 0:01:11.4]} 25... bxc4 {[%clk 0:00:34]} 26. bxc4
{[%clk 0:01:12.2]} 26... Ne7 {[%clk 0:00:29.5]} 27. Ba3 {[%clk 0:01:06.5]} 27...
Rfe8 {[%clk 0:00:27.7]} 28. c5 {[%clk 0:01:04.1]} 28... Bc7 {[%clk 0:00:27.8]}
29. Rab1 {[%clk 0:00:57.7]} 29... Nd5 {[%clk 0:00:25.2]} 30. Rb7 {[%clk
0:00:54.7]} 30... Ra8 {[%clk 0:00:19.5]} 31. Bb2 {[%clk 0:00:48.8]} 31... f6
{[%clk 0:00:19.7]} 32. Nb4 {[%clk 0:00:32]} 32... Nxb4 {[%clk 0:00:18.6]} 33.
Rxb4 {[%clk 0:00:32.9]} 33... Rab8 {[%clk 0:00:16.7]} 34. Bc3 {[%clk 0:00:30.1]}
34... Rxb4 {[%clk 0:00:16.4]} 35. Bxb4 {[%clk 0:00:30.9]} 35... Rb8 {[%clk
0:00:16.6]} 36. Bd2 {[%clk 0:00:29.5]} 36... Rb2 {[%clk 0:00:14.6]} 37. Be3
{[%clk 0:00:29.7]} 37... Rc2 {[%clk 0:00:15]} 38. Rb1 {[%clk 0:00:28.3]} 38...
h5 {[%clk 0:00:13]} 39. g3 {[%clk 0:00:28.6]} 39... Kh7 {[%clk 0:00:12.6]} 40.
Rb7 {[%clk 0:00:28.2]} 40... Be5 {[%clk 0:00:12.6]} 41. Kg2 {[%clk 0:00:28.4]}
41... Kg6 {[%clk 0:00:12.1]} 42. Re7 {[%clk 0:00:28]} 42... Kf5 {[%clk
0:00:10.5]} 43. Rxg7 {[%clk 0:00:27.7]} 43... Bc3 {[%clk 0:00:09]} 44. Rh7
{[%clk 0:00:27]} 44... Kg6 {[%clk 0:00:08.2]} 45. Rh6+ {[%clk 0:00:27]} 45...
Kg7 {[%clk 0:00:08.2]} 46. Rxh5 {[%clk 0:00:27.2]} 46... f5 {[%clk 0:00:08.3]}
47. Rg5+ {[%clk 0:00:25.9]} 47... Kf6 {[%clk 0:00:08.1]} 48. h4 {[%clk
0:00:26.3]} 48... Bb4 {[%clk 0:00:06.6]} 49. Bd4+ {[%clk 0:00:26.1]} 49... e5
{[%clk 0:00:06]} 50. Be3 {[%clk 0:00:26.4]} 50... Bxc5 {[%clk 0:00:06.1]} 51.
Bxc5 {[%clk 0:00:26.2]} 51... Rxc5 {[%clk 0:00:06.5]} 52. Rg8 {[%clk 0:00:26.7]}
52... Kf7 {[%clk 0:00:06.2]} 53. Rd8 {[%clk 0:00:26.2]} 53... e4 {[%clk
0:00:05.2]} 54. Rd2 {[%clk 0:00:21.8]} 54... Rc3 {[%clk 0:00:05]} 55. Re2 {[%clk
0:00:22.1]} 55... Kg6 {[%clk 0:00:04.9]} 56. Rd2 {[%clk 0:00:21]} 56... Ra3
{[%clk 0:00:04.4]} 57. Kh3 {[%clk 0:00:20.8]} 57... Rf3 {[%clk 0:00:03.6]} 58.
Kg2 {[%clk 0:00:20.3]} 58... Ra3 {[%clk 0:00:03.6]} 59. Rd6+ {[%clk 0:00:20.6]}
59... Kh5 {[%clk 0:00:03.3]} 60. Rf6 {[%clk 0:00:20.7]} 60... Rf3 {[%clk
0:00:03.2]} 61. Rf7 {[%clk 0:00:20.4]} 61... e3 {[%clk 0:00:03.1]} 62. Kxf3
{[%clk 0:00:19.7]} 62... exf2 {[%clk 0:00:02.7]} 63. Kxf2 {[%clk 0:00:20.2]} 1-0